[Event "Titled Tuesday Blitz February 21 Early 2023"]
[White "Jeet, Jain"]
[Black "Antonio, Jorge Carlos"]
[WhiteFideId "5073022"]
[BlackFideId "113190"]
[WhiteElo "2199"]
[BlackElo "2277"]
[Result "1-0"]
[Round "02"]
[TimeControl "180+2"]
[Date "2023.02.21"]
[WhiteClock "0:00:14"]
[BlackClock "0:00:10"]

1. d4 {[%clk 0:03:00]}  d5 {[%clk 0:02:59]} 2. Nc3 {[%clk 0:03:00]}  c6 {[%clk 0:02:57]} 3. Bg5 {[%clk 0:02:59]}  h6 {[%clk 0:02:57]} 4. Bh4 {[%clk 0:02:59]}  Qb6 {[%clk 0:02:53]} 5. Rb1 {[%clk 0:02:58]}  Bf5 {[%clk 0:02:53]} 6. f3 {[%clk 0:02:54]}  e6 {[%clk 0:02:52]} 7. e4 {[%clk 0:02:53]}  Bg6 {[%clk 0:02:39]} 8. Bf2 {[%clk 0:02:53]}  Qa5 {[%clk 0:02:36]} 9. Bd3 {[%clk 0:02:43]}  Bd6 {[%clk 0:02:32]} 10. a3 {[%clk 0:02:41]}  dxe4 {[%clk 0:02:15]} 11. fxe4 {[%clk 0:02:40]}  Ne7 {[%clk 0:02:11]} 12. Nf3 {[%clk 0:02:38]}  Nd7 {[%clk 0:02:08]} 13. O-O {[%clk 0:02:36]}  e5 {[%clk 0:02:05]} 14. Ne2 {[%clk 0:02:25]}  exd4 {[%clk 0:01:59]} 15. Nexd4 {[%clk 0:02:25]}  O-O {[%clk 0:01:53]} 16. Nh4 {[%clk 0:02:18]}  Qc7 {[%clk 0:01:48]} 17. h3 {[%clk 0:02:01]}  Bh7 {[%clk 0:01:44]} 18. Ndf5 {[%clk 0:01:57]}  Nxf5 {[%clk 0:01:43]} 19. Nxf5 {[%clk 0:01:56]}  Bxf5 {[%clk 0:01:40]} 20. exf5 {[%clk 0:01:56]}  Rfe8 {[%clk 0:01:37]} 21. c3 {[%clk 0:01:52]}  Bc5 {[%clk 0:01:32]} 22. Bxc5 {[%clk 0:01:46]}  Nxc5 {[%clk 0:01:31]} 23. f6 {[%clk 0:01:47]}  g6 {[%clk 0:01:30]} 24. Bxg6 {[%clk 0:01:46]}  Qg3 {[%clk 0:01:15]} 25. Bc2 {[%clk 0:01:30]}  Rad8 {[%clk 0:01:05]} 26. Qf3 {[%clk 0:00:55]}  Qxf3 {[%clk 0:01:01]} 27. Rxf3 {[%clk 0:00:53]}  Re2 {[%clk 0:00:58]} 28. Rg3+ {[%clk 0:00:45]}  Kh8 {[%clk 0:00:57]} 29. Bf5 {[%clk 0:00:42]}  Rdd2 {[%clk 0:00:55]} 30. Rf1 {[%clk 0:00:35]}  Rxb2 {[%clk 0:00:50]} 31. Rf4 {[%clk 0:00:31]}  Ne6 {[%clk 0:00:45]} 32. Rh4 {[%clk 0:00:17]}  Ng5 {[%clk 0:00:14]} 33. Rxg5 {[%clk 0:00:15]}  Re1+ {[%clk 0:00:12]} 34. Kh2 {[%clk 0:00:14]}  Rbb1 {[%clk 0:00:10]} 35. Rxh6# {[%clk 0:00:14]} 1-0


[Site "https://www.chess.com"]

[Event "Titled Tuesday Blitz February 21 Early 2023"]
[White "Silvestre, Christian"]
[Black "Tang, Andrew"]
[WhiteFideId "30956269"]
[BlackFideId "2059630"]
[WhiteElo "1942"]
[BlackElo "2523"]
[Result "0-1"]
[Round "02"]
[TimeControl "180+2"]
[Date "2023.02.21"]
[WhiteClock "0:00:49"]
[BlackClock "0:01:55"]

1. Nf3 {[%clk 0:02:59]}  d5 {[%clk 0:02:55]} 2. d4 {[%clk 0:02:55]}  Nf6 {[%clk 0:02:54]} 3. Bg5 {[%clk 0:02:56]}  e6 {[%clk 0:02:51]} 4. Nbd2 {[%clk 0:02:54]}  Nbd7 {[%clk 0:02:47]} 5. e3 {[%clk 0:02:30]}  b6 {[%clk 0:02:46]} 6. Bd3 {[%clk 0:02:28]}  Bb7 {[%clk 0:02:46]} 7. Qe2 {[%clk 0:02:28]}  c5 {[%clk 0:02:44]} 8. c3 {[%clk 0:02:24]}  Be7 {[%clk 0:02:41]} 9. a4 {[%clk 0:02:24]}  O-O {[%clk 0:02:39]} 10. O-O {[%clk 0:02:21]}  h6 {[%clk 0:02:38]} 11. Bh4 {[%clk 0:02:21]}  Ne4 {[%clk 0:02:34]} 12. Bxe7 {[%clk 0:02:21]}  Qxe7 {[%clk 0:02:33]} 13. a5 {[%clk 0:02:20]}  Nd6 {[%clk 0:02:33]} 14. Ba6 {[%clk 0:02:14]}  Bc6 {[%clk 0:02:26]} 15. b4 {[%clk 0:02:04]}  c4 {[%clk 0:02:22]} 16. Ne5 {[%clk 0:01:53]}  Nb8 {[%clk 0:02:18]} 17. Ra2 {[%clk 0:01:24]}  b5 {[%clk 0:02:11]} 18. Nxc6 {[%clk 0:01:07]}  Nxc6 {[%clk 0:02:11]} 19. e4 {[%clk 0:01:06]}  Rab8 {[%clk 0:02:05]} 20. exd5 {[%clk 0:01:00]}  exd5 {[%clk 0:02:04]} 21. Qxe7 {[%clk 0:01:00]}  Nxe7 {[%clk 0:02:04]} 22. Re1 {[%clk 0:00:59]}  Nc6 {[%clk 0:02:04]} 23. Nf3 {[%clk 0:00:53]}  Rbe8 {[%clk 0:02:04]} 24. Rae2 {[%clk 0:00:52]}  Rxe2 {[%clk 0:02:00]} 25. Rxe2 {[%clk 0:00:52]}  Rd8 {[%clk 0:01:57]} 26. Ne5 {[%clk 0:00:49]}  Nb8 {[%clk 0:01:55]} 0-1


[Site "https://www.chess.com"]

[Event "Titled Tuesday Blitz February 21 Early 2023"]
[White "Anuj, Shrivatri"]
[Black "Avalos Parra, Joao"]
[WhiteFideId "35070924"]
[BlackFideId "3402541"]
[WhiteElo "2407"]
[BlackElo "2185"]
[Result "1-0"]
[Round "02"]
[TimeControl "180+2"]
[Date "2023.02.21"]
[WhiteClock "0:01:05"]
[BlackClock "0:00:18"]

1. Nf3 {[%clk 0:02:56]}  d5 {[%clk 0:02:58]} 2. d4 {[%clk 0:02:56]}  Nf6 {[%clk 0:02:58]} 3. c4 {[%clk 0:02:56]}  e6 {[%clk 0:02:54]} 4. Nc3 {[%clk 0:02:55]}  Bb4 {[%clk 0:02:54]} 5. Qa4+ {[%clk 0:02:48]}  Nc6 {[%clk 0:02:53]} 6. e3 {[%clk 0:02:49]}  O-O {[%clk 0:02:52]} 7. Qc2 {[%clk 0:02:49]}  Re8 {[%clk 0:02:49]} 8. Bd2 {[%clk 0:02:45]}  e5 {[%clk 0:02:46]} 9. dxe5 {[%clk 0:02:23]}  Nxe5 {[%clk 0:02:46]} 10. cxd5 {[%clk 0:02:24]}  Bg4 {[%clk 0:02:27]} 11. Be2 {[%clk 0:02:15]}  a5 {[%clk 0:02:14]} 12. a3 {[%clk 0:02:09]}  Bc5 {[%clk 0:02:13]} 13. Rd1 {[%clk 0:02:08]}  Qe7 {[%clk 0:01:30]} 14. Qa4 {[%clk 0:01:52]}  Bd7 {[%clk 0:01:19]} 15. Qf4 {[%clk 0:01:50]}  Bd6 {[%clk 0:01:18]} 16. Nxe5 {[%clk 0:01:46]}  Bxe5 {[%clk 0:01:19]} 17. Qh4 {[%clk 0:01:47]}  Nxd5 {[%clk 0:01:16]} 18. Qxe7 {[%clk 0:01:45]}  Nxe7 {[%clk 0:01:16]} 19. Bf3 {[%clk 0:01:44]}  c6 {[%clk 0:01:15]} 20. Ke2 {[%clk 0:01:42]}  Be6 {[%clk 0:01:15]} 21. Bc1 {[%clk 0:01:39]}  Red8 {[%clk 0:01:12]} 22. Be4 {[%clk 0:01:39]}  Bb3 {[%clk 0:01:11]} 23. Rd2 {[%clk 0:01:37]}  Rxd2+ {[%clk 0:01:05]} 24. Bxd2 {[%clk 0:01:36]}  Rd8 {[%clk 0:01:06]} 25. Bd3 {[%clk 0:01:32]}  Nc8 {[%clk 0:00:57]} 26. f4 {[%clk 0:01:32]}  Bf6 {[%clk 0:00:57]} 27. Ne4 {[%clk 0:01:32]}  Be7 {[%clk 0:00:55]} 28. Rc1 {[%clk 0:01:31]}  a4 {[%clk 0:00:54]} 29. Ba5 {[%clk 0:01:30]}  Re8 {[%clk 0:00:53]} 30. Nc5 {[%clk 0:01:26]}  Bxc5 {[%clk 0:00:49]} 31. Rxc5 {[%clk 0:01:26]}  b6 {[%clk 0:00:48]} 32. Rxc6 {[%clk 0:01:22]}  bxa5 {[%clk 0:00:47]} 33. Ra6 {[%clk 0:01:20]}  g6 {[%clk 0:00:44]} 34. Rxa5 {[%clk 0:01:20]}  Nd6 {[%clk 0:00:44]} 35. g4 {[%clk 0:01:17]}  Kg7 {[%clk 0:00:30]} 36. g5 {[%clk 0:01:17]}  Ne4 {[%clk 0:00:25]} 37. h4 {[%clk 0:01:17]}  Ng3+ {[%clk 0:00:25]} 38. Kf3 {[%clk 0:01:16]}  Nf5 {[%clk 0:00:23]} 39. Bxf5 {[%clk 0:01:15]}  gxf5 {[%clk 0:00:24]} 40. h5 {[%clk 0:01:14]}  Bd1+ {[%clk 0:00:24]} 41. Kf2 {[%clk 0:01:15]}  Bxh5 {[%clk 0:00:22]} 42. Rxa4 {[%clk 0:01:16]}  Rc8 {[%clk 0:00:22]} 43. Rb4 {[%clk 0:01:15]}  Rc2+ {[%clk 0:00:21]} 44. Kg3 {[%clk 0:01:14]}  Be2 {[%clk 0:00:21]} 45. a4 {[%clk 0:01:12]}  Bd3 {[%clk 0:00:21]} 46. a5 {[%clk 0:01:11]}  Be4 {[%clk 0:00:22]} 47. a6 {[%clk 0:01:11]}  Rg2+ {[%clk 0:00:22]} 48. Kh3 {[%clk 0:01:11]}  h6 {[%clk 0:00:22]} 49. a7 {[%clk 0:01:09]}  Rg1 {[%clk 0:00:22]} 50. Rxe4 {[%clk 0:01:09]}  Ra1 {[%clk 0:00:17]} 51. gxh6+ {[%clk 0:01:07]}  Kxh6 {[%clk 0:00:17]} 52. Re7 {[%clk 0:01:07]}  Kg6 {[%clk 0:00:18]} 53. b4 {[%clk 0:01:05]} 1-0


[Site "https://www.chess.com"]

[Event "Titled Tuesday Blitz February 21 Early 2023"]
[White "Zeydan, Salih"]
[Black "Rustemov, Alexander"]
[WhiteFideId "6361722"]
[BlackFideId "4119002"]
[WhiteElo "2060"]
[BlackElo "2525"]
[Result "0-1"]
[Round "02"]
[TimeControl "180+2"]
[Date "2023.02.21"]
[WhiteClock "0:00:13"]
[BlackClock "0:01:07"]

1. e4 {[%clk 0:03:00]}  e6 {[%clk 0:02:56]} 2. d3 {[%clk 0:02:59]}  c5 {[%clk 0:02:55]} 3. Nf3 {[%clk 0:02:55]}  Nc6 {[%clk 0:02:56]} 4. g3 {[%clk 0:02:55]}  g6 {[%clk 0:02:56]} 5. Bg2 {[%clk 0:02:55]}  Bg7 {[%clk 0:02:56]} 6. O-O {[%clk 0:02:54]}  Nge7 {[%clk 0:02:56]} 7. Re1 {[%clk 0:02:49]}  d6 {[%clk 0:02:55]} 8. c3 {[%clk 0:02:42]}  e5 {[%clk 0:02:55]} 9. Nbd2 {[%clk 0:02:39]}  O-O {[%clk 0:02:54]} 10. a4 {[%clk 0:02:37]}  h6 {[%clk 0:02:53]} 11. Nc4 {[%clk 0:02:37]}  Bg4 {[%clk 0:02:49]} 12. h3 {[%clk 0:02:37]}  Be6 {[%clk 0:02:48]} 13. Nh2 {[%clk 0:02:26]}  Qd7 {[%clk 0:02:47]} 14. g4 {[%clk 0:02:04]}  d5 {[%clk 0:02:44]} 15. Ne3 {[%clk 0:01:48]}  d4 {[%clk 0:02:40]} 16. cxd4 {[%clk 0:01:45]}  Nxd4 {[%clk 0:02:40]} 17. Nc4 {[%clk 0:01:32]}  Rad8 {[%clk 0:02:35]} 18. Be3 {[%clk 0:01:29]}  Nec6 {[%clk 0:02:33]} 19. f4 {[%clk 0:01:20]}  exf4 {[%clk 0:02:31]} 20. Bxf4 {[%clk 0:01:20]}  Nb4 {[%clk 0:01:51]} 21. Rb1 {[%clk 0:01:08]}  Ndc2 {[%clk 0:01:48]} 22. Ne5 {[%clk 0:00:36]}  Qd4+ {[%clk 0:01:43]} 23. Kh1 {[%clk 0:00:28]}  Nxe1 {[%clk 0:01:41]} 24. Qxe1 {[%clk 0:00:22]}  Bxe5 {[%clk 0:01:41]} 25. Nf3 {[%clk 0:00:22]}  Nxd3 {[%clk 0:01:39]} 26. Nxd4 {[%clk 0:00:21]}  Nxe1 {[%clk 0:01:39]} 27. Nxe6 {[%clk 0:00:19]}  fxe6 {[%clk 0:01:32]} 28. Bxe5 {[%clk 0:00:18]}  Nxg2 {[%clk 0:01:32]} 29. Kxg2 {[%clk 0:00:19]}  Rd2+ {[%clk 0:01:28]} 30. Kg3 {[%clk 0:00:19]}  Rd3+ {[%clk 0:01:27]} 31. Kg2 {[%clk 0:00:20]}  b6 {[%clk 0:01:22]} 32. b4 {[%clk 0:00:19]}  c4 {[%clk 0:01:20]} 33. Rc1 {[%clk 0:00:20]}  Rc8 {[%clk 0:01:19]} 34. Bc3 {[%clk 0:00:17]}  a6 {[%clk 0:01:10]} 35. b5 {[%clk 0:00:17]}  axb5 {[%clk 0:01:10]} 36. axb5 {[%clk 0:00:18]}  Rc5 {[%clk 0:01:10]} 37. Be1 {[%clk 0:00:15]}  c3 {[%clk 0:01:09]} 38. Rc2 {[%clk 0:00:13]}  Rxb5 {[%clk 0:01:07]} 0-1


[Site "https://www.chess.com"]

[Event "Titled Tuesday Blitz February 21 Early 2023"]
[White "Pichot, Alan"]
[Black "Begunov, Konstantin"]
[WhiteFideId "110973"]
[BlackFideId "4118510"]
[WhiteElo "2638"]
[BlackElo "2325"]
[Result "1-0"]
[Round "02"]
[TimeControl "180+2"]
[Date "2023.02.21"]
[WhiteClock "0:00:10"]
[BlackClock "0:00:12"]

1. e4 {[%clk 0:02:53]}  c5 {[%clk 0:02:35]} 2. c3 {[%clk 0:02:49]}  Nf6 {[%clk 0:02:34]} 3. e5 {[%clk 0:02:48]}  Nd5 {[%clk 0:02:35]} 4. d4 {[%clk 0:02:49]}  cxd4 {[%clk 0:02:36]} 5. Nf3 {[%clk 0:02:49]}  Nc6 {[%clk 0:02:36]} 6. Bc4 {[%clk 0:02:43]}  Nb6 {[%clk 0:02:36]} 7. Bb3 {[%clk 0:02:43]}  d5 {[%clk 0:02:36]} 8. exd6 {[%clk 0:02:42]}  e6 {[%clk 0:02:36]} 9. cxd4 {[%clk 0:02:40]}  Bxd6 {[%clk 0:02:36]} 10. O-O {[%clk 0:02:41]}  Nb4 {[%clk 0:02:34]} 11. Nc3 {[%clk 0:02:40]}  O-O {[%clk 0:02:33]} 12. Bg5 {[%clk 0:02:38]}  Be7 {[%clk 0:02:30]} 13. Bf4 {[%clk 0:02:35]}  Bd7 {[%clk 0:02:27]} 14. Ne5 {[%clk 0:02:35]}  Bc6 {[%clk 0:02:19]} 15. Bg3 {[%clk 0:02:31]}  Rc8 {[%clk 0:02:12]} 16. Qg4 {[%clk 0:02:28]}  Bd5 {[%clk 0:02:00]} 17. Nxd5 {[%clk 0:02:23]}  N6xd5 {[%clk 0:01:59]} 18. Rac1 {[%clk 0:02:22]}  Rxc1 {[%clk 0:01:49]} 19. Rxc1 {[%clk 0:02:21]}  Nf6 {[%clk 0:01:46]} 20. Qf3 {[%clk 0:02:10]}  Qxd4 {[%clk 0:01:35]} 21. Qxb7 {[%clk 0:02:09]}  Qxb2 {[%clk 0:01:29]} 22. Rd1 {[%clk 0:02:04]}  Re8 {[%clk 0:01:10]} 23. h3 {[%clk 0:01:41]}  Nxa2 {[%clk 0:01:01]} 24. Nxf7 {[%clk 0:01:20]}  Nc1 {[%clk 0:00:15]} 25. Nd6 {[%clk 0:00:17]}  Qxb3 {[%clk 0:00:13]} 26. Qxb3 {[%clk 0:00:16]}  Nxb3 {[%clk 0:00:14]} 27. Nxe8 {[%clk 0:00:16]}  Nxe8 {[%clk 0:00:14]} 28. Rd7 {[%clk 0:00:13]}  Bc5 {[%clk 0:00:14]} 29. Rb7 {[%clk 0:00:12]}  Nd4 {[%clk 0:00:14]} 30. Be5 {[%clk 0:00:12]}  Nc6 {[%clk 0:00:11]} 31. Bc3 {[%clk 0:00:11]}  Bb6 {[%clk 0:00:11]} 32. g4 {[%clk 0:00:09]}  Kf8 {[%clk 0:00:12]} 33. Kg2 {[%clk 0:00:09]}  Nd8 {[%clk 0:00:12]} 34. Rd7 {[%clk 0:00:07]}  Nf7 {[%clk 0:00:11]} 35. f4 {[%clk 0:00:08]}  g6 {[%clk 0:00:10]} 36. Kf3 {[%clk 0:00:08]}  Nfd6 {[%clk 0:00:10]} 37. Bb4 {[%clk 0:00:08]}  Bc7 {[%clk 0:00:08]} 38. Rxc7 {[%clk 0:00:06]}  Nxc7 {[%clk 0:00:08]} 39. Bxd6+ {[%clk 0:00:06]}  Ke8 {[%clk 0:00:08]} 40. Bxc7 {[%clk 0:00:07]}  Kd7 {[%clk 0:00:09]} 41. Ba5 {[%clk 0:00:07]}  Kc6 {[%clk 0:00:09]} 42. Ke4 {[%clk 0:00:08]}  Kb5 {[%clk 0:00:10]} 43. Bd8 {[%clk 0:00:08]}  Kc4 {[%clk 0:00:10]} 44. Ke5 {[%clk 0:00:08]}  Kd3 {[%clk 0:00:11]} 45. Kxe6 {[%clk 0:00:09]}  Ke4 {[%clk 0:00:12]} 46. f5 {[%clk 0:00:09]}  gxf5 {[%clk 0:00:12]} 47. gxf5 {[%clk 0:00:10]} 1-0


[Site "https://www.chess.com"]

[Event "Titled Tuesday Blitz February 21 Early 2023"]
[White "Urazayev, Arystanbek"]
[Black "Pourkashiyan, Atousa"]
[WhiteFideId "13709810"]
[BlackFideId "12502014"]
[WhiteElo "2460"]
[BlackElo "2282"]
[Result "1-0"]
[Round "02"]
[TimeControl "180+2"]
[Date "2023.02.21"]
[WhiteClock "0:01:34"]
[BlackClock "0:00:07"]

1. d4 {[%clk 0:03:00]}  Nf6 {[%clk 0:02:57]} 2. c4 {[%clk 0:03:01]}  e6 {[%clk 0:02:56]} 3. Nc3 {[%clk 0:03:01]}  Bb4 {[%clk 0:02:56]} 4. Qc2 {[%clk 0:03:01]}  O-O {[%clk 0:02:56]} 5. Nf3 {[%clk 0:02:58]}  c5 {[%clk 0:02:54]} 6. dxc5 {[%clk 0:02:52]}  Na6 {[%clk 0:02:54]} 7. a3 {[%clk 0:02:49]}  Bxc3+ {[%clk 0:02:54]} 8. Qxc3 {[%clk 0:02:50]}  Nxc5 {[%clk 0:02:55]} 9. e3 {[%clk 0:02:41]}  b6 {[%clk 0:02:55]} 10. b4 {[%clk 0:02:41]}  Nce4 {[%clk 0:02:54]} 11. Qd4 {[%clk 0:02:40]}  Bb7 {[%clk 0:02:55]} 12. Bb2 {[%clk 0:02:39]}  d5 {[%clk 0:02:55]} 13. Be2 {[%clk 0:02:38]}  dxc4 {[%clk 0:02:54]} 14. Bxc4 {[%clk 0:02:35]}  Qxd4 {[%clk 0:02:53]} 15. Bxd4 {[%clk 0:02:36]}  Rac8 {[%clk 0:02:52]} 16. Bd3 {[%clk 0:02:33]}  Nc3 {[%clk 0:02:24]} 17. O-O {[%clk 0:02:33]}  Be4 {[%clk 0:02:17]} 18. Ba6 {[%clk 0:02:31]}  Rc6 {[%clk 0:01:31]} 19. Ne5 {[%clk 0:02:20]}  Rc7 {[%clk 0:01:30]} 20. f3 {[%clk 0:02:11]}  Bb7 {[%clk 0:01:14]} 21. Bd3 {[%clk 0:01:58]}  Ncd5 {[%clk 0:01:14]} 22. Rfc1 {[%clk 0:01:57]}  Rfc8 {[%clk 0:01:13]} 23. Rxc7 {[%clk 0:01:57]}  Rxc7 {[%clk 0:01:14]} 24. Kf2 {[%clk 0:01:54]}  Nd7 {[%clk 0:00:59]} 25. Nxd7 {[%clk 0:01:54]}  Rxd7 {[%clk 0:00:59]} 26. Rc1 {[%clk 0:01:55]}  Rc7 {[%clk 0:00:56]} 27. Rxc7 {[%clk 0:01:55]}  Nxc7 {[%clk 0:00:57]} 28. e4 {[%clk 0:01:51]}  Kf8 {[%clk 0:00:51]} 29. Be5 {[%clk 0:01:47]}  Ba6 {[%clk 0:00:26]} 30. Ke3 {[%clk 0:01:34]}  Bxd3 {[%clk 0:00:14]} 31. Kxd3 {[%clk 0:01:35]}  Ne8 {[%clk 0:00:06]} 32. Kc4 {[%clk 0:01:34]}  a6 {[%clk 0:00:07]} 33. b5 {[%clk 0:01:34]} 1-0


[Site "https://www.chess.com"]

[Event "Titled Tuesday Blitz February 21 Early 2023"]
[White "Lagno, Kateryna"]
[Black "Mogirzan, Matei-Valeriu"]
[WhiteFideId "14109336"]
[BlackFideId "1257455"]
[WhiteElo "2558"]
[BlackElo "1813"]
[Result "1-0"]
[Round "02"]
[TimeControl "180+2"]
[Date "2023.02.21"]
[WhiteClock "0:00:28"]
[BlackClock "0:00:02"]

1. e4 {[%clk 0:03:00]}  d6 {[%clk 0:02:55]} 2. d4 {[%clk 0:03:00]}  Nd7 {[%clk 0:02:55]} 3. Nf3 {[%clk 0:02:59]}  a6 {[%clk 0:02:56]} 4. c4 {[%clk 0:02:57]}  g6 {[%clk 0:02:55]} 5. Nc3 {[%clk 0:02:56]}  Bg7 {[%clk 0:02:55]} 6. Be2 {[%clk 0:02:52]}  c5 {[%clk 0:02:50]} 7. O-O {[%clk 0:02:51]}  cxd4 {[%clk 0:02:48]} 8. Nxd4 {[%clk 0:02:51]}  Qc7 {[%clk 0:02:47]} 9. Nd5 {[%clk 0:02:50]}  Qd8 {[%clk 0:02:47]} 10. Bg5 {[%clk 0:02:48]}  h6 {[%clk 0:02:44]} 11. Bh4 {[%clk 0:02:48]}  g5 {[%clk 0:02:43]} 12. Bg3 {[%clk 0:02:48]}  Ngf6 {[%clk 0:02:43]} 13. Nf5 {[%clk 0:02:46]}  Bf8 {[%clk 0:02:40]} 14. Qd4 {[%clk 0:02:33]}  h5 {[%clk 0:02:15]} 15. f4 {[%clk 0:02:30]}  gxf4 {[%clk 0:02:11]} 16. Bh4 {[%clk 0:02:18]}  e5 {[%clk 0:02:05]} 17. Qf2 {[%clk 0:02:13]}  b5 {[%clk 0:01:25]} 18. cxb5 {[%clk 0:02:09]}  Bb7 {[%clk 0:01:25]} 19. Nxf6+ {[%clk 0:02:01]}  Nxf6 {[%clk 0:01:22]} 20. bxa6 {[%clk 0:01:40]}  Bc6 {[%clk 0:01:10]} 21. Rac1 {[%clk 0:01:38]}  Bd7 {[%clk 0:00:48]} 22. Rfd1 {[%clk 0:01:28]}  Nxe4 {[%clk 0:00:45]} 23. Qf3 {[%clk 0:01:19]}  Qb6+ {[%clk 0:00:43]} 24. Nd4 {[%clk 0:01:01]}  f5 {[%clk 0:00:33]} 25. Kh1 {[%clk 0:00:52]}  exd4 {[%clk 0:00:32]} 26. Bd3 {[%clk 0:00:52]}  d5 {[%clk 0:00:28]} 27. Qxf4 {[%clk 0:00:51]}  Bd6 {[%clk 0:00:24]} 28. Qf3 {[%clk 0:00:51]}  Qxb2 {[%clk 0:00:20]} 29. Rb1 {[%clk 0:00:46]}  Qc3 {[%clk 0:00:19]} 30. Rb3 {[%clk 0:00:46]}  Qc7 {[%clk 0:00:18]} 31. Rb7 {[%clk 0:00:44]}  Qc3 {[%clk 0:00:17]} 32. Rdb1 {[%clk 0:00:45]}  Be7 {[%clk 0:00:17]} 33. Rb8+ {[%clk 0:00:43]}  Kf7 {[%clk 0:00:15]} 34. Rxa8 {[%clk 0:00:41]}  Rxa8 {[%clk 0:00:13]} 35. Qxh5+ {[%clk 0:00:41]}  Ke6 {[%clk 0:00:13]} 36. Qg6+ {[%clk 0:00:40]}  Bf6 {[%clk 0:00:11]} 37. Bxe4 {[%clk 0:00:39]}  dxe4 {[%clk 0:00:07]} 38. Qxf6+ {[%clk 0:00:39]}  Kd5 {[%clk 0:00:07]} 39. Bg3 {[%clk 0:00:33]}  Qc6 {[%clk 0:00:04]} 40. Qe5+ {[%clk 0:00:32]}  Kc4 {[%clk 0:00:04]} 41. Rc1+ {[%clk 0:00:33]}  Kd3 {[%clk 0:00:04]} 42. Rxc6 {[%clk 0:00:33]}  Bxc6 {[%clk 0:00:05]} 43. Qxf5 {[%clk 0:00:30]}  Re8 {[%clk 0:00:02]} 44. Qf1+ {[%clk 0:00:29]}  Kd2 {[%clk 0:00:02]} 45. Qe1+ {[%clk 0:00:29]}  Kd3 {[%clk 0:00:03]} 46. Qd1+ {[%clk 0:00:30]}  Ke3 {[%clk 0:00:02]} 47. Qc1+ {[%clk 0:00:28]}  Ke2 {[%clk 0:00:03]} 48. Qxc6 {[%clk 0:00:29]}  d3 {[%clk 0:00:04]} 49. Bf4 {[%clk 0:00:28]}  e3 {[%clk 0:00:04]} 50. Qf3+ {[%clk 0:00:28]}  Kd2 {[%clk 0:00:02]} 51. h4 {[%clk 0:00:28]}  Ke1 {[%clk 0:00:01]} 52. Bxe3 {[%clk 0:00:27]}  d2 {[%clk 0:00:02]} 53. Qf2+ {[%clk 0:00:27]}  Kd1 {[%clk 0:00:02]} 54. Qxd2# {[%clk 0:00:28]} 1-0


[Site "https://www.chess.com"]

[Event "Titled Tuesday Blitz February 21 Early 2023"]
[White "Martin Barcelo, Carles"]
[Black "Sokolovsky, Yahli"]
[WhiteFideId "24561444"]
[BlackFideId "2820242"]
[WhiteElo "2221"]
[BlackElo "2461"]
[Result "0-1"]
[Round "02"]
[TimeControl "180+2"]
[Date "2023.02.21"]
[WhiteClock "0:00:53"]
[BlackClock "0:00:40"]

1. d4 {[%clk 0:03:00]}  d5 {[%clk 0:02:51]} 2. Nf3 {[%clk 0:03:00]}  c6 {[%clk 0:02:50]} 3. e3 {[%clk 0:03:01]}  Bg4 {[%clk 0:02:50]} 4. Bd3 {[%clk 0:03:00]}  e6 {[%clk 0:02:49]} 5. O-O {[%clk 0:03:00]}  f5 {[%clk 0:02:49]} 6. b3 {[%clk 0:02:57]}  Nf6 {[%clk 0:02:47]} 7. Ba3 {[%clk 0:02:55]}  Bxa3 {[%clk 0:02:35]} 8. Nxa3 {[%clk 0:02:56]}  Qd6 {[%clk 0:02:35]} 9. Nb1 {[%clk 0:02:52]}  Nbd7 {[%clk 0:02:36]} 10. h3 {[%clk 0:02:51]}  Bh5 {[%clk 0:02:31]} 11. Nbd2 {[%clk 0:02:49]}  g5 {[%clk 0:02:21]} 12. Be2 {[%clk 0:02:46]}  g4 {[%clk 0:02:20]} 13. Nh2 {[%clk 0:02:36]}  Rg8 {[%clk 0:02:04]} 14. h4 {[%clk 0:02:36]}  O-O-O {[%clk 0:01:40]} 15. g3 {[%clk 0:02:35]}  e5 {[%clk 0:01:35]} 16. dxe5 {[%clk 0:02:31]}  Nxe5 {[%clk 0:01:36]} 17. c4 {[%clk 0:02:30]}  d4 {[%clk 0:01:33]} 18. c5 {[%clk 0:02:09]}  Qxc5 {[%clk 0:01:31]} 19. exd4 {[%clk 0:02:09]}  Rxd4 {[%clk 0:01:21]} 20. Qe1 {[%clk 0:01:53]}  f4 {[%clk 0:01:04]} 21. Bc4 {[%clk 0:01:27]}  Re8 {[%clk 0:00:47]} 22. gxf4 {[%clk 0:00:59]}  Nxc4 {[%clk 0:00:45]} 23. Qc1 {[%clk 0:00:54]}  Rxd2 {[%clk 0:00:43]} 24. bxc4 {[%clk 0:00:54]}  Qd4 {[%clk 0:00:42]} 25. Re1 {[%clk 0:00:53]}  Qxf2+ {[%clk 0:00:40]} 0-1


[Site "https://www.chess.com"]